bitfinex-derivatives/quotes_BTCF0:USTF0_20240907
["timestamp","ask_amount","ask_price","bid_price","bid_amount"]
[1725715692378,0.002,54587.0,54586.0,0.092603]
[1725715692860,0.002,54587.0,54586.0,0.140903]
[1725715693066,0.002,54587.0,54586.0,0.4633132]
[1725715693373,0.002,54587.0,54586.0,0.46336465]
[1725715693574,0.002,54587.0,54586.0,0.50826465]
[1725715695465,0.002,54587.0,54586.0,0.36869066]
[1725715695980,0.002,54587.0,54586.0,0.277406]
[1725715696165,0.002,54587.0,54586.0,0.36869066]
[1725715696361,0.002,54587.0,54586.0,0.277406]
[1725715696674,0.0465,54600.0,54599.0,0.091581]
[1725715696865,0.0465,54600.0,54599.0,0.191581]
[1725715697971,0.0505,54600.0,54599.0,0.191581]
[1725715698174,0.0836084,54600.0,54599.0,0.091581]
[1725715699072,0.0886084,54600.0,54599.0,0.091581]
[1725715699386,0.16883444,54600.0,54599.0,0.091581]
[1725715699566,0.22504951,54600.0,54599.0,0.091581]
[1725715700470,0.16883444,54600.0,54599.0,0.091581]
[1725715702179,0.16883436,54600.0,54599.0,0.091581]
[1725715704571,0.22504938,54600.0,54599.0,0.091581]
[1725715706980,0.0886084,54600.0,54599.0,0.091581]
[1725715707377,0.1801874,54600.0,54599.0,0.091581]
[1725715714286,0.26041004,54600.0,54599.0,0.091581]
[1725715715394,0.40668231,54600.0,54599.0,0.091581]
[1725715716788,0.1801874,54600.0,54599.0,0.091581]
[1725715716977,0.26041561,54600.0,54599.0,0.091581]
[1725715717480,0.26041561,54600.0,54599.0,0.183162]
[1725715717481,0.08922821,54600.0,54599.0,0.183162]
[1725715717680,0.04437808,54600.0,54599.0,0.183162]
[1725715718887,0.17243607,54600.0,54599.0,0.183162]
[1725715719085,0.04437808,54600.0,54599.0,0.183162]
[1725715720185,0.009,54600.0,54599.0,0.183162]
[1725715720680,0.009,54600.0,54599.0,1.332602]
[1725715720879,0.10971327,54601.0,54599.0,1.241021]
[1725715721089,0.10971327,54603.0,54601.0,0.091577]
[1725715721292,0.18302488,54620.0,54603.0,0.183148]
[1725715721293,0.10971327,54604.0,54603.0,0.183148]
[1725715721492,0.10971327,54605.0,54604.0,0.183144]
[1725715721694,0.10971327,54605.0,54604.0,0.283144]
[1725715721886,0.10971327,54605.0,54604.0,1.432544]
[1725715722284,0.03351629,54614.0,54604.0,1.340972]
[1725715722486,0.09155,54618.0,54613.0,0.191556]
[1725715722792,0.09155,54618.0,54616.0,0.1]
[1725715723090,0.12374015,54618.0,54616.0,0.1]
[1725715724883,0.13074015,54618.0,54615.0,0.091554]
[1725715725088,0.13274015,54618.0,54615.0,0.091554]
[1725715725895,0.091551,54617.0,54616.0,0.001]
[1725715726087,0.191551,54617.0,54616.0,0.001]
[1725715726282,0.191551,54617.0,54615.0,0.091554]
[1725715726695,0.191551,54617.0,54615.0,0.092554]
[1725715726993,0.091552,54616.0,54615.0,0.092554]
[1725715727492,0.091552,54616.0,54615.0,0.091554]
[1725715727690,0.091552,54616.0,54615.0,0.092554]
[1725715728101,0.090552,54616.0,54615.0,0.092554]
[1725715730397,0.20603898,54616.0,54615.0,0.091554]
[1725715730598,0.096552,54616.0,54615.0,0.091554]
[1725715730798,0.20603898,54616.0,54615.0,0.091554]
[1725715731491,0.096552,54616.0,54615.0,0.091554]
[1725715731695,0.20603089,54616.0,54615.0,0.091554]
[1725715732286,0.096552,54616.0,54615.0,0.091554]
[1725715732802,0.20603089,54616.0,54615.0,0.091554]
[1725715733794,0.096552,54616.0,54615.0,0.091554]
[1725715734302,0.20603089,54616.0,54615.0,0.091554]
[1725715734500,0.20603623,54616.0,54615.0,0.091554]
[1725715735201,0.096552,54616.0,54615.0,0.091554]
[1725715737414,0.37114204,54616.0,54615.0,0.091554]
[1725715737600,0.41597772,54616.0,54615.0,0.091554]
[1725715738109,0.23295284,54616.0,54615.0,0.091554]
[1725715738403,0.41597772,54616.0,54615.0,0.091554]
[1725715738603,0.091557,54613.0,54612.0,0.091559]
[1725715739293,0.22795784,54613.0,54612.0,0.091559]
[1725715740297,0.23095784,54613.0,54612.0,0.091559]
[1725715741205,0.23295784,54613.0,54612.0,0.091559]
[1725715744305,0.096557,54613.0,54612.0,0.091559]
[1725715746513,0.20615641,54613.0,54612.0,0.091559]
[1725715747400,0.096557,54613.0,54612.0,0.091559]
[1725715747602,0.091561,54611.0,54610.0,0.1]
[1725715747904,0.20135545,54611.0,54610.0,0.191562]
[1725715749202,0.20135545,54611.0,54610.0,0.192562]
[1725715749507,0.091561,54611.0,54610.0,0.192562]
[1725715750902,0.20143281,54611.0,54610.0,0.192562]
[1725715751915,0.091561,54611.0,54610.0,0.192562]
[1725715752420,0.14775726,54611.0,54610.0,0.192562]
[1725715752708,0.22795645,54611.0,54610.0,0.192562]
[1725715752913,0.41047728,54611.0,54610.0,0.192562]
[1725715753397,0.22795645,54611.0,54610.0,0.192562]
[1725715755307,0.17176019,54611.0,54610.0,0.192562]
[1725715756108,0.27346049,54611.0,54610.0,0.192562]
[1725715756302,0.3182944,54611.0,54610.0,0.192562]
[1725715757214,0.17176019,54611.0,54610.0,0.192562]
[1725715757413,0.23809412,54611.0,54610.0,0.192562]
[1725715757613,0.31828913,54611.0,54610.0,0.092562]
[1725715757908,0.2551413,54611.0,54610.0,0.092562]
[1725715758111,0.17176171,54611.0,54610.0,0.092562]
[1725715759406,0.091561,54611.0,54610.0,0.092562]
[1725715761108,0.091561,54611.0,54610.0,0.192562]
[1725715762004,0.20145461,54616.0,54614.0,0.091555]
[1725715762216,0.091553,54616.0,54614.0,0.24626567]
[1725715763304,0.095553,54616.0,54614.0,0.191555]
[1725715763505,0.100553,54616.0,54614.0,0.191555]
[1725715765616,0.100553,54616.0,54615.0,0.091554]
[1725715766519,0.14538619,54616.0,54615.0,0.091554]
[1725715766821,0.14638619,54616.0,54615.0,0.091554]
[1725715767711,0.20258282,54616.0,54615.0,0.091554]
[1725715768509,0.20358282,54616.0,54615.0,0.091554]
[1725715773518,0.22075925,54616.0,54615.0,0.091554]
[1725715774418,0.11972943,54616.0,54615.0,0.091554]
[1725715776018,0.1550938,54616.0,54615.0,0.091554]
[1725715776521,0.13791737,54616.0,54615.0,0.091554]
[1725715779130,0.13791683,54616.0,54615.0,0.091554]
[1725715780024,0.102553,54616.0,54615.0,0.091554]
[1725715782333,0.2307182,54616.0,54615.0,0.091554]
[1725715782518,0.14738891,54616.0,54615.0,0.091554]
[1725715783633,0.102553,54616.0,54615.0,0.091554]
[1725715789433,0.20358523,54616.0,54615.0,0.091554]
[1725715790534,0.36839031,54616.0,54615.0,0.091554]
[1725715790738,0.40375345,54616.0,54615.0,0.091554]
[1725715791032,0.18275096,54616.0,54615.0,0.091554]
[1725715791739,0.23894368,54616.0,54615.0,0.091554]
[1725715792131,0.20358054,54616.0,54615.0,0.091554]
[1725715792645,0.2389441,54616.0,54615.0,0.091554]
[1725715793537,0.20358054,54616.0,54615.0,0.091554]
[1725715793738,0.23894397,54616.0,54615.0,0.091554]
[1725715793936,0.2035802,54616.0,54615.0,0.091554]
[1725715794538,0.40375124,54616.0,54615.0,0.091554]
[1725715795441,0.2389425,54616.0,54615.0,0.091554]
[1725715797546,0.102553,54616.0,54615.0,0.091554]
[1725715802350,0.04636253,54616.0,54615.0,0.183108]
[1725715802651,0.011,54616.0,54615.0,0.183108]
[1725715802950,0.011,54616.0,54615.0,0.31796188]
[1725715803339,0.011,54616.0,54615.0,0.26325121]
[1725715803541,0.011,54616.0,54615.0,0.17169721]
[1725715803746,0.011,54616.0,54615.0,0.137954]
[1725715804144,0.011,54616.0,54611.0,0.05471067]
[1725715804145,0.111,54616.0,54611.0,0.05471067]
[1725715804353,0.111,54616.0,54607.0,0.091567]
[1725715804354,0.1,54612.0,54607.0,0.091567]
[1725715804553,0.1,54612.0,54606.0,0.1]
[1725715804554,0.18309315,54610.0,54606.0,0.1]
[1725715804736,0.38412517,54609.0,54604.0,0.091572]
[1725715804937,0.16469901,54605.0,54600.0,0.191579]
[1725715805148,0.28281382,54604.0,54601.0,0.091577]
[1725715805343,0.19124082,54603.0,54601.0,0.091577]
[1725715805542,0.04483473,54602.0,54601.0,0.091577]
[1725715805847,0.23797909,54604.0,54602.0,0.1]
[1725715806044,0.04483912,54603.0,54602.0,0.1]
[1725715806248,0.04483912,54603.0,54602.0,0.191576]
[1725715806249,0.03983912,54603.0,54602.0,0.191576]
[1725715806448,0.03983912,54603.0,54602.0,0.091576]
[1725715806649,0.25627201,54604.0,54602.0,0.191576]
[1725715806845,0.05620279,54603.0,54602.0,0.191576]
[1725715807041,0.05620279,54603.0,54602.0,0.192576]
[1725715807246,0.25727201,54604.0,54602.0,0.192576]
[1725715808144,0.05620279,54603.0,54602.0,0.192576]
[1725715808453,0.25727201,54604.0,54602.0,0.192576]
[1725715808652,0.28967909,54604.0,54602.0,0.192576]
[1725715808955,0.19810609,54604.0,54602.0,0.192576]
[1725715809144,0.001,54603.0,54602.0,0.201576]
[1725715809350,0.002,54603.0,54602.0,0.202576]
[1725715809749,0.001,54603.0,54602.0,0.197576]
[1725715810146,0.002,54604.0,54602.0,0.197576]
[1725715810451,0.001,54603.0,54602.0,0.197576]
[1725715810847,0.001,54603.0,54602.0,0.196576]
[1725715811157,0.002,54603.0,54602.0,0.197576]
[1725715812748,0.12404901,54607.0,54603.0,0.091574]
[1725715813057,0.12404901,54607.0,54603.0,0.18278548]
[1725715813259,0.12404901,54607.0,54606.0,0.07296636]
[1725715813948,0.12504901,54607.0,54604.0,0.091572]
[1725715814152,0.09157,54606.0,54604.0,0.091572]
[1725715814846,0.086571,54605.0,54604.0,0.091572]
[1725715816057,0.183148,54603.0,54602.0,0.09121148]
[1725715816265,0.183148,54603.0,54598.0,0.10943522]
[1725715816266,0.091576,54602.0,54601.0,0.05472631]
[1725715816555,0.091589,54594.0,54592.0,0.05473751]
[1725715816754,0.2414,54593.0,54589.0,0.07296742]
[1725715817059,0.084594,54591.0,54590.0,0.05475551]
[1725715817254,0.091598,54589.0,54588.0,0.05475551]
[1725715817958,0.087598,54589.0,54588.0,0.05475551]
[1725715818157,0.087598,54589.0,54587.0,0.14635651]
[1725715818551,0.091599,54588.0,54587.0,0.14635651]
[1725715819062,0.091601,54587.0,54586.0,0.15475551]
[1725715819258,0.091601,54587.0,54586.0,0.1]
[1725715820353,0.092601,54587.0,54586.0,0.1]
[1725715820553,0.093601,54587.0,54586.0,0.1]
[1725715821867,0.093601,54587.0,54584.0,0.091605]
[1725715824157,0.091603,54586.0,54584.0,0.091605]
[1725715825773,0.092603,54586.0,54585.0,0.091604]
[1725715826062,0.093603,54586.0,54585.0,0.191604]
[1725715827066,0.092603,54586.0,54585.0,0.191604]
[1725715827265,0.093603,54586.0,54585.0,0.191604]
[1725715827971,0.002,54586.0,54585.0,0.191604]
[1725715832570,0.002,54586.0,54585.0,0.22479554]
[1725715832969,0.002,54586.0,54585.0,0.12479554]
[1725715843678,0.002,54586.0,54585.0,0.21639954]
[1725715843878,0.0492,54593.0,54592.0,0.091593]
[1725715844074,0.0492,54593.0,54592.0,0.191593]
[1725715845386,0.0492,54593.0,54592.0,0.26462002]
[1725715845575,0.0492,54593.0,54592.0,0.16462002]
[1725715845883,0.0492,54593.0,54592.0,0.091593]
[1725715850482,0.140791,54593.0,54592.0,0.091593]
[1725715854186,0.091594,54591.0,54590.0,0.07315445]
[1725715855490,0.091594,54591.0,54589.0,0.091597]
[1725715855491,0.091596,54590.0,54589.0,0.16475145]
[1725715855786,0.091596,54590.0,54589.0,0.091597]
[1725715856991,0.092596,54590.0,54589.0,0.091597]
[1725715857493,0.093596,54590.0,54589.0,0.091597]
[1725715857694,0.23987799,54590.0,54589.0,0.091597]
[1725715857888,0.32010927,54590.0,54589.0,0.091597]
[1725715860488,0.32010904,54590.0,54589.0,0.091597]
[1725715860995,0.32010958,54590.0,54589.0,0.091597]
[1725715861503,0.17382759,54590.0,54589.0,0.091597]
[1725715862691,0.08223159,54590.0,54586.0,0.091602]
[1725715862895,0.23807898,54587.0,54586.0,0.091602]
[1725715863193,0.31831057,54587.0,54586.0,0.091602]
[1725715863794,0.22670957,54587.0,54586.0,0.091602]
[1725715863997,0.14747798,54587.0,54586.0,0.191602]
[1725715864193,0.08123159,54587.0,54586.0,0.191602]
[1725715864394,0.12916497,54587.0,54586.0,0.191602]
[1725715864586,0.16454454,54587.0,54586.0,0.191602]
[1725715864786,0.001,54587.0,54586.0,0.33117571]
[1725715865090,0.092597,54590.0,54588.0,0.091598]
[1725715865391,0.091597,54590.0,54588.0,0.091598]
[1725715865789,0.091597,54590.0,54589.0,0.091598]
[1725715866293,0.091597,54590.0,54589.0,0.16479111]
[1725715866496,0.092597,54590.0,54589.0,0.16479111]
[1725715867290,0.093597,54590.0,54589.0,0.091598]
[1725715869887,0.093597,54590.0,54589.0,0.191598]
[1725715869888,0.002,54590.0,54589.0,0.191598]
[1725715870698,0.093596,54590.0,54589.0,0.191598]
[1725715870887,0.093596,54590.0,54589.0,0.091598]
[1725715873095,0.193596,54590.0,54589.0,0.091598]
[1725715874091,0.091599,54588.0,54587.0,0.07319501]
[1725715875287,0.092599,54588.0,54587.0,0.07319501]
[1725715875794,0.092599,54588.0,54587.0,0.16479601]
[1725715876000,0.093599,54588.0,54587.0,0.16479601]
[1725715879599,0.093599,54588.0,54587.0,0.091601]
[1725715879800,0.12897923,54588.0,54587.0,0.091601]
[1725715883102,0.16212656,54588.0,54587.0,0.091601]
[1725715883806,0.16212657,54588.0,54587.0,0.091601]
[1725715887802,0.002,54588.0,54587.0,0.18308519]
[1725715887998,0.002,54588.0,54587.0,0.32263601]
[1725715888199,0.002,54588.0,54587.0,0.3226351]
[1725715888701,0.002,54588.0,54587.0,0.23117851]
[1725715889308,0.002,54588.0,54587.0,0.32263562]
[1725715893616,0.002,54588.0,54587.0,0.32263457]
[1725715894800,0.13016497,54588.0,54587.0,0.091601]
[1725715895807,0.002,54588.0,54587.0,0.091601]
[1725715897608,0.04685204,54588.0,54587.0,0.091601]
[1725715897812,0.04685204,54588.0,54587.0,0.191601]
[1725715900199,0.13024892,54588.0,54587.0,0.191601]
[1725715900401,0.04685088,54588.0,54587.0,0.191601]
[1725715900706,0.002,54588.0,54587.0,0.191601]
[1725715901308,0.13024453,54588.0,54587.0,0.191601]
[1725715901515,0.002,54588.0,54587.0,0.191601]
[1725715902115,0.04685166,54588.0,54587.0,0.191601]
[1725715902917,0.04685166,54588.0,54587.0,0.42263289]
[1725715902918,0.002,54588.0,54587.0,0.42263289]
[1725715903412,0.002,54588.0,54587.0,0.28305811]
[1725715903716,0.002,54588.0,54587.0,0.42263553]
[1725715906409,0.002,54588.0,54587.0,0.28305811]
[1725715906915,0.002,54588.0,54587.0,0.191601]
[1725715909217,0.002,54588.0,54587.0,0.28305811]
[1725715909918,0.08223234,54588.0,54587.0,0.191601]
[1725715910101,0.14847798,54588.0,54587.0,0.191601]
[1725715910306,0.08223234,54588.0,54587.0,0.191601]
[1725715911015,0.22871032,54588.0,54587.0,0.191601]
[1725715911210,0.08223234,54588.0,54587.0,0.191601]
[1725715912113,0.0373799,54588.0,54587.0,0.191601]
[1725715912805,0.08223047,54588.0,54587.0,0.191601]
[1725715913005,0.16562845,54588.0,54587.0,0.191601]
[1725715913413,0.16563246,54588.0,54587.0,0.191601]
[1725715913807,0.16563193,54588.0,54587.0,0.191601]
[1725715914015,0.08223302,54588.0,54587.0,0.191601]
[1725715917817,0.002,54588.0,54587.0,0.191601]
[1725715920610,0.002,54588.0,54587.0,0.33116843]
[1725715920817,0.002,54588.0,54587.0,0.42258328]
[1725715921117,0.002,54588.0,54587.0,0.42258914]
[1725715921421,0.002,54588.0,54587.0,0.28301585]
[1725715921624,0.002,54588.0,54587.0,0.42258914]
[1725715921818,0.002,54588.0,54587.0,0.191601]
[1725715922120,0.002,54588.0,54587.0,0.091601]
[1725715922917,0.093599,54588.0,54587.0,0.091601]
[1725715925026,0.12898007,54588.0,54587.0,0.091601]
[1725715925724,0.002,54588.0,54587.0,0.191601]
[1725715926226,0.03737906,54588.0,54587.0,0.191601]
[1725715926627,0.03737906,54588.0,54587.0,0.283202]
[1725715926833,0.14647798,54594.0,54587.0,1.24956]
[1725715926834,0.12825271,54594.0,54587.0,1.24956]
[1725715927133,0.14647798,54597.0,54587.0,1.24956]
[1725715927134,0.10976919,54597.0,54596.0,0.091586]
[1725715927320,0.51051315,54607.0,54598.0,0.091583]
[1725715927321,0.10976919,54599.0,54598.0,0.091583]
[1725715927628,0.10976919,54601.0,54598.0,0.1]
[1725715927928,0.12825271,54608.0,54606.0,0.091569]
[1725715928125,0.12825271,54608.0,54606.0,0.191569]
[1725715928430,0.03244932,54609.0,54606.0,0.191569]
[1725715928722,0.17345271,54610.0,54607.0,0.091567]
[1725715929227,0.0452,54610.0,54607.0,0.091567]
[1725715930914,0.001,54609.0,54607.0,0.091567]
[1725715931426,0.0472,54610.0,54607.0,0.091567]
[1725715931626,0.0797859,54610.0,54607.0,0.091567]
[1725715931813,0.0807859,54610.0,54607.0,0.091567]
[1725715932219,0.0807859,54610.0,54608.0,0.091565]
[1725715932617,0.002,54609.0,54608.0,0.091565]
[1725715934427,0.0817859,54610.0,54609.0,0.091564]
[1725715934819,0.0797859,54610.0,54609.0,0.091564]
[1725715935313,0.0777859,54610.0,54609.0,0.091564]
[1725715936122,0.0787859,54610.0,54609.0,0.091564]
[1725715937128,0.0807859,54610.0,54609.0,0.091564]
[1725715939023,0.0807859,54610.0,54609.0,0.191564]
[1725715939327,0.003,54610.0,54609.0,0.191564]
[1725715939723,0.003,54610.0,54609.0,0.091564]
[1725715939921,0.003,54610.0,54609.0,0.191564]
[1725715943626,0.001,54610.0,54609.0,0.191564]
[1725715943932,0.001,54610.0,54609.0,0.192564]
[1725715944732,0.0455,54617.0,54614.0,0.091554]
[1725715944931,0.0455,54617.0,54615.0,0.1]
[1725715945328,0.137051,54617.0,54615.0,0.1]
[1725715945931,0.141051,54617.0,54615.0,0.1]
[1725715946835,0.17375512,54617.0,54615.0,0.1]
[1725715947030,0.17375512,54617.0,54615.0,0.191554]
[1725715947031,0.04482935,54616.0,54615.0,0.191554]
[1725715947432,0.17875512,54617.0,54615.0,0.191554]
[1725715947635,0.17975512,54617.0,54615.0,0.191554]
[1725715947929,0.17975512,54617.0,54616.0,0.091552]
[1725715948135,0.13503347,54617.0,54616.0,0.091552]
[1725715948432,0.13003347,54617.0,54616.0,0.091552]
[1725715949132,0.17997672,54617.0,54616.0,0.091552]
[1725715949324,0.0525,54617.0,54616.0,0.091552]
[1725715949526,0.17997672,54617.0,54616.0,0.091552]
[1725715949929,0.18097672,54617.0,54616.0,0.092552]
[1725715951129,0.0595,54617.0,54616.0,0.093552]
[1725715951525,0.18697672,54617.0,54616.0,0.093552]
[1725715952235,0.14153659,54617.0,54616.0,0.12681853]
[1725715952430,0.05882881,54617.0,54616.0,0.12681853]
[1725715953043,0.014,54617.0,54616.0,0.21837053]
[1725715953238,0.014,54617.0,54616.0,0.12681853]
[1725715953829,0.05882786,54617.0,54616.0,0.12681853]
[1725715955146,0.014,54617.0,54616.0,0.12681853]
[1725715958145,0.0469,54623.0,54621.0,0.091544]
[1725715958339,0.0469,54623.0,54622.0,0.091542]
[1725715959343,0.0579,54623.0,54622.0,0.091542]
[1725715959736,0.0719,54623.0,54622.0,0.092542]
[1725715960842,0.0609,54623.0,54622.0,0.092542]
[1725715961032,0.0669,54623.0,54622.0,0.093542]
[1725715963649,0.02,54623.0,54622.0,0.093542]
[1725715964646,0.02,54623.0,54622.0,0.642782]
[1725715965851,0.02,54623.0,54622.0,0.185084]
[1725715966050,0.02,54623.0,54622.0,0.21811594]
[1725715966249,0.02,54623.0,54622.0,1.36735594]
[1725715966647,0.02,54623.0,54622.0,0.76735594]
[1725715966851,0.02,54623.0,54622.0,0.21811594]
[1725715967153,0.02,54623.0,54622.0,1.36735594]
[1725715970262,0.12958223,54623.0,54622.0,1.36735594]
[1725715970454,0.02,54623.0,54622.0,1.36735594]
[1725715970661,0.02,54623.0,54622.0,0.76735594]
[1725715971662,0.014,54623.0,54622.0,0.77135594]
[1725715972767,0.10958223,54624.0,54622.0,0.77135594]
[1725715972768,0.10958223,54624.0,54623.0,0.183082]
[1725715973765,0.0499,54629.0,54625.0,0.091537]
[1725715973766,0.10958223,54627.0,54625.0,0.091537]
[1725715973960,0.10958223,54627.0,54626.0,0.1]
[1725715974161,0.0499,54629.0,54628.0,0.091532]
[1725715976059,0.0509,54629.0,54628.0,0.091532]
[1725715976969,0.0529,54629.0,54628.0,0.091532]
[1725715978373,0.0529,54629.0,54628.0,0.191532]
[1725715979570,0.0529,54629.0,54628.0,0.22464974]
[1725715981067,0.0529,54629.0,54628.0,0.12464974]
[1725715981370,0.0529,54629.0,54628.0,0.22464974]
[1725715986667,0.09771645,54629.0,54628.0,0.22464974]
[1725715987672,0.0529,54629.0,54628.0,0.22464974]
[1725715988773,0.18085856,54629.0,54628.0,0.22464974]
[1725715989667,0.0529,54629.0,54611.0,0.05485752]
[1725715989884,0.10971711,54616.0,54615.0,0.183108]
[1725715990078,0.10971711,54618.0,54617.0,0.274653]
[1725715990269,0.10971711,54618.0,54614.0,0.35617345]
[1725715990270,0.12795856,54626.0,54625.0,0.091537]
[1725715990471,0.12795856,54627.0,54626.0,0.091536]
[1725715990878,0.12795856,54627.0,54626.0,0.191536]
[1725715991085,0.21089901,54633.0,54632.0,0.091526]
[1725715991086,0.12795856,54633.0,54632.0,0.091526]
[1725715991382,0.12797279,54637.0,54636.0,0.091519]
[1725715991567,0.12797279,54638.0,54637.0,0.091517]
[1725715991769,0.12797279,54638.0,54637.0,0.191517]
[1725715992268,0.0479,54641.0,54640.0,0.091512]
[1725715992581,0.0479,54641.0,54640.0,0.191512]
[1725715993580,0.0579,54641.0,54640.0,0.192512]
[1725715994566,0.0609,54641.0,54640.0,0.193512]
[1725715996272,0.0609,54641.0,54640.0,0.22592161]
[1725715996472,0.0609,54641.0,54640.0,0.193512]
[1725715998576,0.0609,54641.0,54640.0,0.093512]
[1725715998779,0.0609,54641.0,54640.0,0.193512]
[1725716000083,0.10570918,54641.0,54640.0,0.193512]
[1725716000978,0.25183026,54641.0,54640.0,0.193512]
[1725716001773,0.0691652,54641.0,54640.0,0.193512]
[1725716001974,0.15909052,54641.0,54640.0,0.882164]
[1725716002173,0.013,54641.0,54640.0,1.573864]
[1725716006086,0.013,54641.0,54640.0,0.973864]
[1725716007685,0.013,54641.0,54640.0,1.573864]
[1725716008190,0.013,54641.0,54640.0,1.528964]
[1725716008895,0.013,54641.0,54640.0,1.437452]
[1725716011584,0.013,54641.0,54640.0,0.837452]
[1725716011985,0.013,54641.0,54640.0,0.288412]
[1725716012385,0.013,54641.0,54640.0,0.241612]
[1725716013095,0.013,54641.0,54640.0,0.193512]
[1725716017497,0.013,54641.0,54640.0,0.002]
[1725716019294,0.013,54641.0,54639.0,0.1243371]
[1725716020388,0.01,54641.0,54639.0,0.1243371]
[1725716020597,0.015,54641.0,54639.0,0.1253371]
[1725716020809,0.015,54641.0,54639.0,0.1263371]
[1725716021502,0.015,54641.0,54640.0,0.091512]
[1725716022299,0.16109052,54641.0,54640.0,0.091512]
[1725716022500,0.05980808,54641.0,54640.0,0.091512]
[1725716022707,0.015,54641.0,54640.0,0.138412]
[1725716024104,0.015,54641.0,54640.0,0.139412]
[1725716024296,0.015,54641.0,54640.0,1.380964]
[1725716025505,0.12789035,54649.0,54648.0,0.091499]
[1725716025699,0.17267681,54649.0,54648.0,0.091499]
[1725716025896,0.04479882,54649.0,54648.0,0.091499]
[1725716026896,0.12787799,54650.0,54649.0,0.091497]
[1725716028008,0.12787799,54650.0,54649.0,0.281497]
[1725716028199,0.12787799,54650.0,54649.0,0.282497]
[1725716028405,0.12887799,54650.0,54649.0,0.283497]
[1725716030193,0.001,54650.0,54649.0,0.283497]
[1725716032303,0.001,54650.0,54649.0,0.31681225]
[1725716034903,0.001,54650.0,54649.0,0.37166977]
[1725716036307,0.001,54650.0,54649.0,0.31681225]
[1725716037204,0.14709052,54650.0,54649.0,0.31681225]
[1725716037407,0.14712317,54650.0,54649.0,0.31681225]
[1725716037704,0.0457969,54650.0,54649.0,0.31681225]
[1725716038399,0.04579756,54650.0,54649.0,0.31681225]
[1725716038801,0.19191761,54650.0,54649.0,0.31681225]
[1725716039108,0.04579756,54650.0,54649.0,0.31681225]
[1725716039310,0.19190856,54650.0,54649.0,0.31681225]
[1725716039805,0.04579756,54650.0,54649.0,0.31681225]
[1725716040011,0.19190856,54650.0,54649.0,0.31681225]
[1725716040914,0.04579756,54650.0,54649.0,0.31681225]
[1725716041106,0.19190856,54650.0,54649.0,0.31681225]
[1725716041913,0.04579756,54650.0,54649.0,0.31681225]
[1725716042100,0.04579664,54650.0,54649.0,0.31681225]
[1725716042507,0.19190764,54650.0,54649.0,0.31681225]
[1725716042704,0.04579664,54650.0,54649.0,0.31681225]
[1725716045204,0.001,54650.0,54649.0,0.31681225]
[1725716048011,0.001,54650.0,54649.0,0.22681225]
[1725716051316,0.001,54650.0,54649.0,0.28166977]
[1725716051911,0.001,54650.0,54649.0,0.18166977]
[1725716052215,0.001,54650.0,54649.0,0.22681225]
[1725716054616,0.001,54650.0,54649.0,0.002]
[1725716055118,0.001,54650.0,54649.0,0.102]
[1725716055920,0.001,54650.0,54649.0,0.193497]
[1725716058414,0.001,54650.0,54649.0,0.24831362]
[1725716060207,0.001,54650.0,54649.0,0.193497]
[1725716060414,0.18409315,54650.0,54649.0,0.193497]
[1725716060613,0.28503805,54650.0,54649.0,0.193497]
[1725716061316,0.1019449,54650.0,54649.0,0.193497]
[1725716063308,0.1019449,54650.0,54649.0,0.093497]
[1725716063509,0.1019449,54650.0,54649.0,0.193497]
[1725716064110,0.18397502,54650.0,54649.0,0.193497]
[1725716064306,0.1019449,54650.0,54649.0,0.193497]
[1725716064517,0.10194686,54650.0,54649.0,0.193497]
[1725716066721,0.10195083,54650.0,54649.0,0.193497]
[1725716067313,0.001,54650.0,54649.0,0.193497]
[1725716072825,0.001,54650.0,54649.0,0.24835147]
[1725716073232,0.001,54650.0,54649.0,0.193497]
[1725716073620,0.001,54650.0,54649.0,0.24836779]
[1725716073822,0.001,54650.0,54649.0,0.193497]
[1725716075927,0.04579743,54650.0,54649.0,0.193497]
[1725716076522,0.04579748,54650.0,54649.0,0.193497]
[1725716076724,0.1290824,54650.0,54649.0,0.193497]
[1725716076924,0.04579636,54650.0,54649.0,0.193497]
[1725716077822,0.12907868,54650.0,54649.0,0.193497]
[1725716079424,0.04579634,54650.0,54649.0,0.193497]
[1725716081023,0.1921882,54650.0,54649.0,0.193497]
[1725716081226,0.04579634,54650.0,54649.0,0.193497]
[1725716081432,0.04579507,54650.0,54649.0,0.193497]
[1725716082431,0.045,54653.0,54652.0,0.091492]
[1725716082627,0.045,54653.0,54652.0,0.28291969]
[1725716082829,0.045,54653.0,54652.0,0.191492]
[1725716084529,0.045,54653.0,54652.0,0.192492]
[1725716084732,0.045,54653.0,54652.0,0.193492]
[1725716088838,0.045,54653.0,54652.0,0.002]
[1725716089135,0.045,54653.0,54652.0,0.0751692]
[1725716089941,0.045,54653.0,54652.0,0.1666612]
[1725716090133,0.045,54653.0,54652.0,0.093492]
[1725716090328,0.20969085,54653.0,54652.0,0.093492]
[1725716090538,0.31064375,54653.0,54652.0,0.093492]
[1725716091238,0.31064371,54653.0,54652.0,0.093492]
[1725716096438,0.14595188,54653.0,54652.0,0.093492]
[1725716096641,0.20969085,54653.0,54652.0,0.093492]
[1725716096844,0.31064273,54653.0,54652.0,0.093492]
[1725716097340,0.045,54653.0,54652.0,0.093492]
[1725716099243,0.13649,54653.0,54652.0,0.14830238]
[1725716102645,0.13649,54653.0,54652.0,0.24831224]
[1725716102948,0.045,54653.0,54652.0,0.193492]
[1725716104248,0.045,54653.0,54652.0,0.2666612]
[1725716104853,0.045,54653.0,54652.0,0.193492]
[1725716107338,0.045,54653.0,54652.0,0.24831158]
[1725716107742,0.045,54653.0,54652.0,0.24831189]
[1725716107947,0.045,54653.0,54652.0,0.193492]
[1725716108141,0.045,54653.0,54652.0,0.22626719]
[1725716109144,0.045,54653.0,54652.0,0.2810881]